bitfinex-derivatives/quotes_SOLF0:USTF0_20251107
["timestamp","ask_amount","ask_price","bid_price","bid_amount"]
[1762504623530,4.60218702,157.4,157.38,3.23]
[1762504623730,3.03,157.41,157.38,3.23]
[1762504623931,3.07625538,157.41,157.38,3.27081565]
[1762504625837,0.04625538,157.41,157.39,3.23]
[1762504626333,0.04625538,157.41,157.39,8.9512]
[1762504626941,0.04625538,157.41,157.39,3.23]
[1762504627130,3.07625538,157.41,157.38,0.04081565]
[1762504627335,4.60504985,157.4,157.38,0.04081565]
[1762504627532,3.07625538,157.41,157.38,3.27081565]
[1762504627738,12.61723098,157.4,157.38,0.04081565]
[1762504627934,4.6046948,157.39,157.38,0.04081565]
[1762504628345,9.58711016,157.39,157.38,0.04081565]
[1762504628540,4.6046948,157.39,157.38,3.27081565]
[1762504628740,0.04625538,157.41,157.38,3.27081565]
[1762504628939,4.60496599,157.4,157.38,3.27081565]
[1762504629144,3.07625538,157.41,157.38,3.27081565]
[1762504629348,4.60566652,157.4,157.38,3.27081565]
[1762504629537,3.07625538,157.41,157.38,3.27081565]
[1762504629738,12.62089731,157.4,157.38,0.04081565]
[1762504629940,9.59058048,157.39,157.38,0.04081565]
[1762504630447,12.62058048,157.39,157.38,0.04081565]
[1762504630842,9.59058048,157.39,157.38,0.04081565]
[1762504631947,12.62058048,157.39,157.38,0.04081565]
[1762504633147,4.60601773,157.39,157.38,0.04081565]
[1762504633339,4.60601773,157.39,157.38,3.27081565]
[1762504633938,3.07625538,157.41,157.38,3.27081565]
[1762504634138,4.60819474,157.4,157.38,3.27081565]
[1762504634335,0.04625538,157.41,157.38,3.27081565]
[1762504634750,0.04625538,157.41,157.4,3.17]
[1762504634950,4.65430511,157.41,157.4,3.17]
[1762504635751,0.04625538,157.41,157.4,3.17]
[1762504638351,0.04625538,157.41,157.39,5.7213]
[1762504638352,3.12625538,157.41,157.38,0.04081565]
[1762504638655,7.68744568,157.4,157.38,0.04081565]
[1762504638850,3.08,157.4,157.38,0.04081565]
[1762504639551,4.60565854,157.39,157.38,0.04081565]
[1762504639847,0.04625538,157.41,157.38,3.21081565]
[1762504640052,4.60740379,157.4,157.38,3.21081565]
[1762504640246,0.04625538,157.41,157.38,3.21081565]
[1762504640447,4.6077006,157.4,157.38,3.21081565]
[1762504640746,0.04625538,157.41,157.38,3.21081565]
[1762504640947,4.60769901,157.4,157.38,3.21081565]
[1762504641144,4.6063708,157.39,157.38,0.04081565]
[1762504641446,3.12625538,157.41,157.38,0.04081565]
[1762504641648,12.67158997,157.4,157.38,0.04081565]
[1762504641848,3.08,157.4,157.38,0.04081565]
[1762504642252,4.60689265,157.39,157.38,0.04081565]
[1762504643456,7.68689265,157.39,157.38,0.04081565]
[1762504644356,4.60689265,157.39,157.38,0.04081565]
[1762504645656,12.65607206,157.39,157.38,0.04081565]
[1762504647151,8.8017,157.38,157.32,5.7236]
[1762504647357,7.68689265,157.37,157.33,3.17]
[1762504647555,3.08,157.37,157.33,3.17]
[1762504648257,4.6431701,157.36,157.33,3.21769142]
[1762504648457,3.12441559,157.37,157.33,3.21769142]
[1762504649168,3.12441559,157.37,157.33,8.94109142]
[1762504649664,0.04441559,157.37,157.36,3.17]
[1762504654768,0.04441559,157.37,157.35,8.8927]
[1762504654962,0.04441559,157.37,157.35,5.7227]
[1762504655169,0.04441559,157.37,157.36,3.17]
[1762504656772,4.68424036,157.37,157.36,3.17]
[1762504657671,0.04441559,157.37,157.36,3.17]
[1762504659375,0.04441559,157.37,157.34,3.16]
[1762504659567,3.25441559,157.37,157.34,3.16]
[1762504659764,0.04441559,157.37,157.34,3.16]
[1762504660967,0.04441559,157.37,157.36,3.16]
[1762504664774,0.04441559,157.37,157.33,0.04769142]
[1762504664775,2.92,157.36,157.33,0.04769142]
[1762504664983,2.92,157.34,157.33,0.04769142]
[1762504665182,12.54266237,157.34,157.33,0.04769142]
[1762504666686,12.54266237,157.34,157.27,3.0]
[1762504666881,12.54266237,157.33,157.29,3.0]
[1762504667077,4.64822998,157.32,157.29,3.0]
[1762504667282,2.92,157.33,157.29,3.0]
[1762504667481,4.64365175,157.32,157.29,3.0]
[1762504667786,0.04252262,157.32,157.29,3.0412867]
[1762504667988,0.04252262,157.32,157.29,8.7660867]
[1762504668287,0.04252262,157.32,157.3,3.0]
[1762504668878,0.04252262,157.32,157.3,8.7244]
[1762504669787,0.04252262,157.32,157.3,3.0]
[1762504671392,2.96252262,157.32,157.29,0.0412867]
[1762504671589,2.92,157.3,157.29,0.0412867]
[1762504671890,7.55660398,157.3,157.29,0.0412867]
[1762504672689,12.5130219,157.3,157.24,5.7267]
[1762504672991,7.55660398,157.29,157.25,3.0]
[1762504673185,2.92,157.29,157.25,3.0]
[1762504673588,2.96465546,157.29,157.25,3.0]
[1762504673892,2.96465546,157.29,157.25,3.04312781]
[1762504678691,2.96465546,157.29,157.25,0.04312781]
[1762504679195,0.04465546,157.29,157.26,3.0]
[1762504679498,2.96465546,157.29,157.26,3.0]
[1762504679898,2.96465546,157.29,157.25,5.76932781]
[1762504680099,2.96465546,157.29,157.26,3.0]
[1762504680295,0.04465546,157.29,157.26,3.0]
[1762504680597,2.92,157.28,157.25,0.04312781]
[1762504680995,2.92,157.27,157.25,0.04312781]
[1762504681294,2.92,157.27,157.19,3.0]
[1762504682093,2.92,157.27,157.21,3.0]
[1762504682398,2.92,157.25,157.22,0.03286782]
[1762504684793,2.92,157.23,157.22,0.03286782]
[1762504686698,2.92,157.23,157.16,5.7294]
[1762504686899,2.92,157.21,157.13,3.0]
[1762504687289,2.92,157.21,157.16,5.7296]
[1762504687601,2.92,157.21,157.16,3.0]
[1762504687791,0.04795937,157.2,157.16,3.0]
[1762504688605,0.04795937,157.2,157.17,8.7292]
[1762504688807,0.04425794,157.2,157.17,8.7292]
[1762504689499,2.96425794,157.2,157.17,8.7292]
[1762504693504,0.04425794,157.2,157.18,8.7288]
[1762504693706,0.04425794,157.2,157.19,3.0]
[1762504694397,0.04425794,157.2,157.16,8.8495]
[1762504694593,0.04425794,157.2,157.17,3.12]
[1762504696807,0.04425794,157.2,157.19,3.12]
[1762504697709,2.99,157.26,157.22,3.12]
[1762504697903,2.99,157.26,157.21,5.7278]
[1762504698104,2.99,157.25,157.19,3.12]
[1762504698710,0.04027478,157.24,157.21,3.12]
[1762504699008,2.99,157.23,157.2,5.77057866]
[1762504699608,2.99,157.23,157.2,8.89057866]
[1762504699805,0.04027478,157.24,157.2,8.89057866]
[1762504700005,3.03027478,157.24,157.2,8.89057866]
[1762504700406,8.75707478,157.24,157.2,0.04267866]
[1762504700614,2.99,157.23,157.2,0.04267866]
[1762504701115,2.99,157.22,157.2,0.04267866]
[1762504701907,8.7175,157.22,157.2,0.04267866]
[1762504702109,2.99,157.21,157.2,0.04267866]
[1762504702307,2.99,157.21,157.13,3.12]
[1762504702807,2.99,157.21,157.14,8.8502]
[1762504703008,2.99,157.21,157.14,3.12]
[1762504703517,0.04455326,157.19,157.14,3.12]
[1762504704012,3.03455326,157.19,157.15,8.8499]
[1762504704209,3.03455326,157.19,157.15,3.12]
[1762504704516,0.04455326,157.19,157.15,8.8498]
[1762504704715,0.04455326,157.19,157.16,3.12]
[1762504705413,3.03455326,157.19,157.16,3.12]
[1762504706015,3.03455326,157.19,157.15,5.7298]
[1762504706613,3.03455326,157.19,157.15,8.8498]
[1762504708614,3.03455326,157.19,157.1,116.46863832]
[1762504708825,3.03455326,157.19,157.13,8.8507]
[1762504709324,2.99,157.17,157.13,8.8507]
[1762504709517,2.99,157.17,157.13,3.12]
[1762504710321,4.99293201,157.16,157.11,3.12]
[1762504710618,0.04455326,157.19,157.11,3.12]
[1762504710619,8.02719434,157.15,157.11,3.12]
[1762504710819,3.03433925,157.15,157.11,3.12]
[1762504711410,3.03433925,157.15,157.1,116.46863832]
[1762504711609,7.98340963,157.14,157.1,119.58863832]
[1762504711920,4.99340963,157.13,157.11,3.12]
[1762504712122,2.99,157.14,157.11,3.12]
[1762504712321,4.99150065,157.13,157.11,3.12]
[1762504712521,2.99,157.14,157.11,3.12]
[1762504713521,0.04433925,157.15,157.11,3.12]
[1762504713825,4.9936649,157.14,157.11,3.12]
[1762504714125,3.03433925,157.15,157.11,8.8514]
[1762504714420,4.99245596,157.14,157.12,8.851]
[1762504714622,0.04433925,157.15,157.13,3.12]
[1762504715214,0.04433925,157.15,157.14,3.12]
[1762504716323,0.04433925,157.15,157.12,3.12]
[1762504716826,3.03433925,157.15,157.12,3.12]
[1762504717120,3.03433925,157.15,157.11,3.12]
[1762504717422,7.98979457,157.14,157.11,3.12]
[1762504717621,5.00063501,157.13,157.11,3.12]
[1762504717823,2.99,157.14,157.11,3.12]
[1762504718022,5.00063377,157.13,157.11,3.12]
[1762504718228,2.99,157.11,157.1,116.41742717]
[1762504718412,12.50813913,157.11,157.1,105.28291373]
[1762504720425,18.38263925,157.11,157.1,105.28291373]
[1762504721123,12.50813913,157.11,157.1,105.28291373]
[1762504723023,12.50813913,157.11,157.1,95.33361373]
[1762504724120,12.50813913,157.11,157.1,85.17631373]
[1762504724326,12.50813913,157.11,157.1,75.12431373]
[1762504724822,9.51813913,157.11,157.1,75.12431373]
[1762504725221,4.51865123,157.11,157.1,75.12431373]
[1762504725426,4.50659814,157.11,157.1,75.12431373]
[1762504725623,5.7306,157.14,157.1,78.24431373]
[1762504725823,9.49271736,157.13,157.1,78.24431373]
[1762504726026,3.16,157.14,157.1,83.97611373]
[1762504726225,4.50501582,157.13,157.11,3.12]
[1762504726424,0.04433925,157.15,157.11,3.12]
[1762504726624,0.04433925,157.15,157.13,3.12]
[1762504726625,4.50469929,157.14,157.13,3.12]
[1762504727322,0.04433925,157.15,157.13,8.8505]
[1762504727528,0.04433925,157.15,157.14,3.12]
[1762504727728,4.54931775,157.15,157.14,3.12]
[1762504728429,0.04433925,157.15,157.14,3.12]
[1762504728631,0.04433925,157.15,157.1,75.12431373]
[1762504728632,3.20433925,157.15,157.11,3.12]
[1762504729030,3.16,157.13,157.1,75.12431373]
[1762504729225,8.8909,157.13,157.1,75.12431373]
[1762504730123,3.16,157.11,157.1,75.12431373]
[1762504730832,12.65151115,157.11,157.1,75.12431373]
[1762504734137,8.14543621,157.11,157.1,75.12431373]
[1762504736529,8.8905,157.14,157.1,78.24431373]
[1762504736731,9.48866884,157.13,157.1,78.24431373]
[1762504736933,66.76,157.14,157.11,3.12]
[1762504737234,4.96701904,157.13,157.1,78.24431373]
[1762504737433,3.16,157.14,157.1,78.24431373]
[1762504737734,4.96709939,157.13,157.1,78.24431373]
[1762504737928,5.7308,157.13,157.1,78.24431373]
[1762504738536,5.7308,157.13,157.11,3.12]
[1762504739727,12.65291709,157.14,157.11,3.12]
[1762504739932,3.16,157.14,157.11,3.12]
[1762504740333,5.7308,157.13,157.11,3.12]
[1762504740636,9.49258565,157.12,157.1,75.12431373]
[1762504740832,63.56,157.12,157.1,78.24431373]
[1762504741033,66.82433925,157.15,157.1,78.24431373]
[1762504741236,12.65499873,157.14,157.1,78.24431373]
[1762504741538,3.16,157.14,157.1,78.24431373]
[1762504742038,72.5105,157.14,157.1,78.24431373]
[1762504742235,72.4905,157.14,157.1,78.24431373]
[1762504742638,15.22719983,157.13,157.1,78.24431373]
[1762504742835,5.7308,157.13,157.1,78.24431373]
[1762504743240,4.97147275,157.12,157.1,78.24431373]
[1762504743441,5.7308,157.13,157.1,78.24431373]
[1762504743740,8.93453925,157.15,157.11,3.12]
[1762504743942,4.97275745,157.14,157.11,3.12]
[1762504744141,8.93453925,157.15,157.11,3.12]
[1762504744350,9.50563898,157.14,157.11,3.12]
[1762504744640,8.93453925,157.15,157.11,3.12]
[1762504744837,9.50621638,157.14,157.11,3.12]
[1762504745033,72.51453925,157.15,157.11,3.12]
[1762504745238,9.50834114,157.14,157.11,3.12]
[1762504745434,3.20433925,157.15,157.11,3.12]
[1762504745641,9.51173476,157.14,157.11,3.12]
[1762504745842,3.20433925,157.15,157.11,3.12]
[1762504746041,9.51174402,157.14,157.11,3.12]
[1762504746241,8.93443925,157.15,157.11,3.12]
[1762504746445,9.51537536,157.14,157.11,3.12]
[1762504746742,72.51443925,157.15,157.11,3.12]
[1762504747043,9.51744617,157.14,157.11,3.12]
[1762504747244,9.51744617,157.13,157.11,3.12]
[1762504747540,72.51443925,157.15,157.11,3.12]
[1762504747742,9.52089148,157.14,157.11,3.12]
[1762504747943,9.52089148,157.13,157.11,3.12]
[1762504748143,72.51443925,157.15,157.11,3.12]
[1762504748346,9.52551146,157.14,157.11,3.12]
[1762504748541,9.52551146,157.13,157.11,3.12]
[1762504748844,72.51443925,157.15,157.11,3.12]
[1762504749039,9.52550252,157.14,157.12,3.12]
[1762504749246,3.20433925,157.15,157.12,3.12]
[1762504749442,9.52992215,157.14,157.12,3.12]
[1762504749648,0.04433925,157.15,157.12,3.12]
[1762504750441,4.99041837,157.14,157.12,3.12]
[1762504750638,0.04433925,157.15,157.12,3.12]
[1762504750839,9.53457344,157.14,157.12,3.12]
[1762504751034,3.20433925,157.15,157.12,3.12]
[1762504751241,9.5356847,157.14,157.12,3.12]
[1762504751437,3.20433925,157.15,157.12,3.12]
[1762504751641,9.53718839,157.14,157.12,3.12]
[1762504751945,8.93443925,157.15,157.12,3.12]
[1762504752141,9.53673554,157.14,157.12,3.12]
[1762504752344,4.54682619,157.13,157.1,83.97581373]
[1762504752541,4.99256683,157.12,157.1,75.12431373]
[1762504752744,9.53877102,157.11,157.1,75.12431373]
[1762504756051,12.76877102,157.11,157.1,75.12431373]
[1762504756249,76.28877102,157.11,157.1,75.12431373]
[1762504756643,12.76877102,157.11,157.1,75.12431373]
[1762504756947,76.28877102,157.11,157.1,75.12431373]
[1762504757651,12.76877102,157.11,157.1,75.12431373]
[1762504757950,76.28877102,157.11,157.1,75.12431373]
[1762504758151,9.53877102,157.11,157.1,75.12431373]
[1762504758345,73.03877102,157.11,157.1,75.12431373]
[1762504760256,9.53877102,157.11,157.1,78.08431373]
[1762504761256,4.99227254,157.11,157.1,78.08431373]
[1762504761956,9.54601054,157.11,157.1,78.08431373]
[1762504762353,9.54601054,157.11,157.1,75.12431373]
[1762504762657,76.27601054,157.11,157.1,75.12431373]
[1762504763050,73.04601054,157.11,157.1,75.12431373]
[1762504764158,76.27601054,157.11,157.1,75.12431373]
[1762504764353,76.27273582,157.11,157.1,75.12431373]
[1762504764548,82.16556162,157.11,157.1,75.12431373]
[1762504765052,18.66556162,157.11,157.1,43.05491373]
[1762504765253,18.66556162,157.11,157.1,22.01161373]
[1762504765645,82.16556162,157.11,157.1,22.01161373]
[1762504766048,18.66556162,157.11,157.1,22.01161373]
[1762504766350,18.66556162,157.11,157.1,1.76541373]
[1762504766658,76.25273582,157.11,157.1,1.373e-05]
[1762504766859,12.77273582,157.11,157.1,1.373e-05]
[1762504767154,20.63193519,157.11,157.1,1.373e-05]
[1762504767361,3.23,157.1,157.01,2.96]
[1762504767558,5.93751044,157.07,157.01,2.96]
[1762504767752,9.54273582,157.06,157.02,2.96]
[1762504768056,9.54273582,157.05,157.02,2.96]
[1762504768259,9.54273582,157.04,157.02,2.96]
[1762504768463,3.27714603,157.07,157.02,2.96]
[1762504768650,9.52013683,157.06,157.02,2.96]
[1762504768851,9.52013683,157.05,157.02,2.96]
[1762504769051,9.52013683,157.04,157.02,2.96]
[1762504769253,5.7334,157.06,157.02,2.96]
[1762504769449,9.51763473,157.05,157.02,2.96]
[1762504769648,9.51763473,157.04,157.02,2.96]
[1762504769859,5.7334,157.06,157.02,2.96]
[1762504770052,18.48153415,157.05,157.02,2.96]
[1762504770263,12.74783415,157.04,157.0,2.96]
[1762504770457,9.51783415,157.03,157.0,2.96]
[1762504770658,9.00655062,157.04,157.0,2.96]
[1762504770853,9.51353485,157.03,157.0,2.96]
[1762504771061,9.00655062,157.04,157.0,2.96]
[1762504771359,9.51120557,157.03,157.0,2.96]
[1762504771560,9.00655062,157.04,157.0,2.96]
[1762504771752,4.52945822,157.03,157.0,2.96]
[1762504771957,9.00655062,157.04,157.0,2.96]
[1762504772156,4.52945876,157.03,157.0,2.96]
[1762504772362,3.27245062,157.04,156.97,2.96]
[1762504772562,0.04702374,157.02,156.97,2.96]
[1762504772860,4.52767872,157.01,156.97,2.96]
[1762504773066,0.04702374,157.02,156.97,2.96]
[1762504773468,0.04702374,157.02,156.97,8.6965]
[1762504773759,0.04702374,157.02,156.98,2.96]
[1762504773965,0.0425269,157.02,156.98,2.96]
[1762504774164,0.0425269,157.02,157.0,2.96]
[1762504775263,0.0425269,157.02,157.0,8.6953]
[1762504775570,0.0425269,157.02,157.0,2.96]
[1762504777263,0.0425269,157.02,156.89,1.10847441]
[1762504777264,0.0425269,157.02,156.97,2.96]
[1762504777469,0.04317056,157.01,156.97,2.96]
[1762504777672,3.27317056,157.01,156.97,2.96]
[1762504777870,4.52479046,157.0,156.97,2.96]
[1762504778073,3.27317056,157.01,156.97,2.96]
[1762504778262,4.52430607,157.0,156.97,2.96]
[1762504778462,3.27317056,157.01,156.97,2.96]
[1762504778766,3.27317056,157.01,156.88,11.4795]
[1762504778767,5.736,156.99,156.95,2.96]
[1762504778967,5.78485965,156.99,156.95,2.96]
[1762504779166,8.8663,156.98,156.93,3.23]
[1762504779468,3.13,156.96,156.87,3.23]
[1762504779663,18.35725931,156.95,156.87,3.23]
[1762504779867,4.52004655,156.94,156.87,3.23]
[1762504780174,0.04350154,156.93,156.87,3.23]
[1762504780474,0.04350154,156.93,156.91,3.23]
[1762504780679,0.04176077,156.94,156.91,3.23]
[1762504781372,0.04176077,156.94,156.91,8.9685]
[1762504781671,0.04176077,156.94,156.92,3.23]
[1762504784070,0.04176077,156.94,156.93,3.23]
[1762504786071,264.82764289,157.02,156.95,5.7373]
[1762504786266,264.82764289,157.02,156.96,3.01]
[1762504786571,270.56264289,157.02,156.96,3.01]
[1762504786774,264.82764289,157.02,156.97,3.01]
[1762504787070,0.04592882,157.01,156.97,3.01]
[1762504787265,0.04592882,157.01,156.99,3.01]
[1762504787565,264.86797362,157.02,156.99,3.01]
[1762504788166,267.83797362,157.02,156.99,3.01]
[1762504788368,267.83797362,157.02,156.98,3.05095478]
[1762504788770,2.97,157.01,156.98,0.04095478]
[1762504789378,264.86797362,157.02,156.98,3.05095478]
[1762504789874,267.83797362,157.02,156.98,3.05095478]
[1762504790568,264.86797362,157.02,156.98,3.05095478]
[1762504790773,267.83797362,157.02,156.98,3.05095478]
[1762504791578,273.57287362,157.02,156.98,3.05095478]
[1762504791778,2.97,157.01,156.98,3.05095478]
[1762504791969,2.97,157.01,156.98,0.04095478]
[1762504792980,2.97,157.0,156.98,0.04095478]
[1762504794980,8.7056,157.0,156.98,0.04095478]
[1762504795278,72.3856,157.0,156.98,0.04095478]
[1762504795581,63.68,157.0,156.98,3.05095478]
[1762504795881,267.83797362,157.02,156.98,3.05095478]
[1762504796079,331.51797362,157.02,156.98,3.05095478]
[1762504796287,264.86797362,157.02,156.98,3.05095478]
[1762504796876,0.04033073,157.02,157.0,3.01]
[1762504797981,0.04033073,157.02,157.0,8.7454]
[1762504798281,0.04033073,157.02,157.01,3.01]
[1762504800386,2.97,157.09,157.04,3.01]
[1762504800588,12.60698316,157.08,157.01,3.01]
[1762504800773,2.97,157.08,157.01,3.01]
[1762504800978,4.62527593,157.07,157.01,3.01]
[1762504801180,2.97,157.08,157.01,3.01]
[1762504801480,3.01891187,157.06,157.03,0.04268364]
[1762504802674,8.75231187,157.06,157.03,0.04268364]
[1762504803082,0.04891187,157.06,157.03,3.05268364]
[1762504804087,3.01891187,157.06,157.03,0.04268364]
[1762504804389,18.34925038,157.05,157.03,0.04268364]
[1762504804588,8.7038,157.05,157.03,0.04268364]
[1762504804990,2.97,157.04,157.03,0.04268364]
[1762504805594,12.61874465,157.04,156.97,3.01]
[1762504805781,2.97,157.04,156.97,3.01]
[1762504806282,5.7332,157.07,157.01,3.01]
[1762504806481,9.69752176,157.06,157.02,0.04098713]
[1762504806684,9.65342118,157.05,157.03,3.01]
[1762504806885,4.63349113,157.04,157.03,3.01]
[1762504807178,4.63349113,157.04,157.02,0.04098713]
[1762504807380,8.74750058,157.06,157.02,3.05098713]
[1762504807574,9.65920482,157.05,157.02,3.05098713]
[1762504807787,4.63628534,157.04,157.02,3.05098713]
[1762504807987,8.7037,157.05,157.02,0.04098713]
[1762504808184,9.6641227,157.04,157.02,0.04098713]
[1762504808483,7.60964578,157.03,157.02,0.04098713]
[1762504809289,12.63590898,157.03,157.02,0.04098713]
[1762504809787,12.63590898,157.03,157.02,0.00157927]
[1762504812183,18.51655628,157.03,157.02,0.00157927]
[1762504812384,76.37590898,157.03,157.02,0.00157927]
[1762504812583,9.66590898,157.03,157.02,0.00157927]
[1762504812791,12.63590898,157.03,157.02,0.00157927]
[1762504816284,18.51655628,157.03,157.02,0.00157927]
[1762504816896,82.21655628,157.03,157.02,0.00157927]
[1762504817185,77.5769105,157.03,157.02,0.00157927]
[1762504817385,76.34333734,157.03,157.02,0.00157927]
[1762504817888,76.36333734,157.03,157.02,0.00157927]
[1762504818591,84.21715655,157.03,157.02,0.00157927]
[1762504819491,84.19715655,157.03,157.02,0.00157927]
[1762504820792,3.03,156.99,156.92,3.09]
[1762504820992,3.03,156.97,156.92,3.09]
[1762504821188,71.37707414,156.96,156.92,3.09]
[1762504821392,66.73,156.96,156.92,3.09]
[1762504821895,72.51088382,156.96,156.92,3.09]
[1762504822189,72.51088382,156.96,156.88,3.09]
[1762504822190,3.03,156.93,156.88,3.09]
[1762504822394,76.44771418,156.92,156.88,3.09]
[1762504822595,3.03,156.9,156.81,3.09]
[1762504822795,0.04169975,156.87,156.83,3.09]
[1762504823388,0.04169975,156.87,156.86,3.09]
[1762504825201,0.04169975,156.87,156.83,3.09]
[1762504825387,0.04300026,156.87,156.83,3.09]
[1762504825592,3.07300026,156.87,156.83,3.09]
[1762504827094,3.03,156.86,156.79,8.8329]
[1762504827290,0.0434189,156.84,156.8,3.09]
[1762504828093,0.0434189,156.84,156.81,3.09]
[1762504829995,0.0434189,156.84,156.82,8.8318]
[1762504830200,0.04546126,156.85,156.82,3.09]
[1762504831301,0.04546126,156.85,156.84,3.09]
[1762504832818,29.69,156.93,156.86,5.7405]
[1762504833009,3.03,156.92,156.85,3.09]
[1762504833412,3.03,156.92,156.85,8.8307]
[1762504833615,3.03,156.92,156.85,3.09]
[1762504833914,0.04393632,156.9,156.87,3.13546127]
[1762504834118,0.04341103,156.9,156.88,3.09]
[1762504834917,0.04341103,156.9,156.88,8.8297]
[1762504835718,0.04341103,156.9,156.89,3.09]
[1762504836809,97.6286679,157.0,156.89,3.09]
[1762504836810,3.03,156.98,156.91,8.8287]
[1762504837008,4.64677448,156.97,156.91,8.8287]
[1762504837204,4.64657291,156.97,156.91,8.8287]
[1762504837618,7.67657291,156.97,156.91,8.8287]
[1762504837819,3.0779771,156.96,156.92,3.13703332]
[1762504838017,3.0779771,156.96,156.93,3.09]
[1762504838319,0.0479771,156.96,156.93,3.09]
[1762504838618,0.0479771,156.96,156.94,3.09]
[1762504840021,0.0479771,156.96,156.95,3.01]
[1762504843820,0.0479771,156.96,156.93,3.01]
[1762504845421,0.0479771,156.96,156.95,3.09]
[1762504849117,1.10856269,157.05,156.99,3.09]
[1762504849316,9.6602053,157.04,156.99,3.09]
[1762504849515,4.65869693,157.03,156.99,3.09]
[1762504849723,3.04,157.06,156.99,3.09]
[1762504849913,18.43450528,157.05,156.99,3.09]
[1762504850113,3.04,157.03,157.0,0.04369091]
[1762504853118,3.04,157.03,157.0,3.13369091]
[1762504853325,0.04801077,157.04,157.0,3.13369091]
[1762504853524,4.66053272,157.03,157.02,3.09]
[1762504853726,0.04801077,157.04,157.02,3.09]
[1762504855227,0.04801077,157.04,157.02,8.8247]
[1762504855519,0.04801077,157.04,157.03,3.09]
[1762504857022,5.8886679,157.11,157.04,3.09]
[1762504857217,10.8915572,157.14,157.04,3.09]
[1762504857218,4.62939734,157.1,157.04,3.09]
[1762504857420,9.64761221,157.13,157.04,3.09]
[1762504857725,9.64761221,157.12,157.09,3.09]
[1762504857923,3.04,157.14,157.09,3.09]
[1762504858124,0.04895291,157.13,157.1,3.13677916]
[1762504858421,0.0454944,157.13,157.1,3.13848467]
[1762504860823,3.0854944,157.13,157.1,0.04848467]
[1762504863128,0.0454944,157.13,157.1,3.13848467]
[1762504864129,0.0454944,157.13,157.12,3.09]
[1762504866825,0.0454944,157.13,157.1,0.04848467]
[1762504867030,3.0854944,157.13,157.1,0.04848467]
[1762504867327,8.7722,157.1,157.05,3.09]
[1762504867531,3.04,157.1,157.05,3.09]
[1762504868335,0.04227117,157.09,157.06,0.04310586]
[1762504868630,0.04884507,157.09,157.07,3.09]
[1762504869532,0.04884507,157.09,157.06,3.13769035]
[1762504869725,0.04884507,157.09,157.06,8.87079035]
[1762504869928,0.04884507,157.09,157.07,3.09]
[1762504870436,0.04884507,157.09,157.07,8.8228]
[1762504870831,0.04884507,157.09,157.08,3.09]
[1762504871034,3.04,157.16,157.08,3.09]
[1762504871929,8.7698,157.16,157.1,5.7317]
[1762504872133,0.04413934,157.14,157.11,3.09]
[1762504872437,3.08413934,157.14,157.1,0.04079842]
[1762504872935,3.08413934,157.14,157.1,3.13079842]
[1762504873232,0.04413934,157.14,157.1,3.13079842]
[1762504874732,2.99413934,157.14,157.1,3.13079842]
[1762504875122,0.04413934,157.14,157.1,3.13079842]
[1762504875329,0.04413934,157.14,157.1,8.86259842]
[1762504875529,0.04413934,157.14,157.11,2.94]
[1762504876037,2.95,157.13,157.1,0.04079842]
[1762504877034,2.95,157.11,157.1,0.0004108]
[1762504877234,7.93883342,157.11,157.1,0.0004108]
[1762504878233,4.98883342,157.11,157.1,0.0004108]
[1762504879240,12.54250761,157.11,157.1,0.0004108]
[1762504879538,2.95,157.08,157.01,2.94]
[1762504880239,4.99699649,157.07,157.04,2.94]
[1762504880441,0.04201935,157.07,157.04,2.98374546]
[1762504881941,4.99992672,157.06,157.04,2.98374546]
[1762504882139,0.04201935,157.07,157.04,2.98374546]
[1762504882340,5.00241121,157.06,157.04,2.98374546]
[1762504882528,0.04201935,157.07,157.04,2.98374546]
[1762504882728,5.00225151,157.06,157.04,2.98374546]
[1762504882933,0.04201935,157.07,157.04,2.98374546]
[1762504883139,5.00256378,157.06,157.04,2.98374546]
[1762504883334,0.04201935,157.07,157.04,2.98374546]
[1762504883535,4.96867892,157.06,157.04,2.98374546]